fUSD/lending_fUSD_20260217
["ID","MTS","AMOUNT","RATE_DAILY","PERIOD"]
[405775079,1771296641663,-722096.52522804,0.00017,2]
[405775080,1771296641674,-300.0,0.00017,2]
[405775081,1771296641685,-1361.79834295,0.00017022,2]
[405775082,1771296641697,-166.66,0.00017053,2]
[405775083,1771296641706,-166.66,0.00017088,2]
[405775084,1771296641716,-500.0,0.00017165,2]
[405775085,1771296641727,-502.0,0.000173,2]
[405775086,1771296641738,-166.66,0.00017404,2]
[405775087,1771296641749,-500.0,0.00017492,2]
[405775088,1771296641761,-500.0,0.00017492,2]
[405775089,1771296641771,-500.0,0.00017492,2]
[405775090,1771296641781,-150.0,0.00017492,2]
[405775091,1771296641791,-500.0,0.00017492,2]
[405775092,1771296641801,-500.0,0.00017492,2]
[405775093,1771296641812,-150.0,0.00017492,2]
[405775094,1771296641822,-500.0,0.00017492,2]
[405775095,1771296641832,-466.0,0.00017492,2]
[405775096,1771296641843,-500.0,0.00017492,2]
[405775097,1771296641854,-150.0,0.00017492,2]
[405775098,1771296641865,-150.0,0.00017492,2]
[405775099,1771296641874,-214.0121963,0.00017492,2]
[405775100,1771296641885,-500.87477363,0.00017547,2]
[405775101,1771296641897,-500.0,0.00017547,2]
[405775102,1771296641907,-500.0,0.00017547,2]
[405775103,1771296641919,-150.07216309,0.00017547,2]
[405775104,1771296641928,-500.0,0.00017547,2]
[405775105,1771296641938,-500.0,0.00017547,2]
[405775106,1771296641948,-500.0,0.00017547,2]
[405775107,1771296641957,-466.0,0.00017547,2]
[405775108,1771296641967,-500.0,0.00017547,2]
[405775109,1771296641976,-5530.0,0.000176,3]
[405775110,1771296641986,-500.0,0.00017602,2]
[405775111,1771296641996,-500.0,0.00017602,2]
[405775112,1771296642006,-500.0,0.00017602,2]
[405775113,1771296642015,-500.0,0.00017602,2]
[405775114,1771296642029,-500.0,0.00017602,2]
[405775115,1771296642038,-466.0,0.00017602,2]
[405775116,1771296642048,-500.0,0.00017602,2]
[405775117,1771296642058,-166.66,0.00017652,2]
[405775118,1771296642067,-500.0,0.00017656,2]
[405775119,1771296642077,-500.0,0.00017656,2]
[405775120,1771296642087,-505.10095498,0.00017656,2]
[405775121,1771296642097,-500.0,0.00017656,2]
[405775122,1771296642107,-500.0,0.00017656,2]
[405775123,1771296642117,-466.0,0.00017656,2]
[405775124,1771296642126,-500.0,0.00017656,2]
[405775125,1771296642136,-784.32813885,0.000177,2]
[405775126,1771296642146,-403.0,0.000177,5]
[405775127,1771296642155,-9035.0,0.00017703,2]
[405775128,1771296642166,-2258.0,0.00017703,2]
[405775129,1771296642175,-187.36614029,0.00017711,2]
[405775130,1771296642185,-150.0,0.00017711,2]
[405775131,1771296642195,-150.0,0.00017711,2]
[405775132,1771296642205,-500.0,0.00017711,2]
[405775133,1771296642214,-510.76125773,0.00017711,2]
[405775134,1771296642224,-500.0,0.00017711,2]
[405775135,1771296642234,-500.0,0.00017711,2]
[405775136,1771296642244,-466.0,0.00017711,2]
[405775137,1771296642254,-500.0,0.00017711,2]
[405775138,1771296642264,-166.66,0.00017756,2]
[405775139,1771296642273,-150.0,0.00017766,2]
[405775140,1771296642282,-150.0,0.00017766,2]
[405775141,1771296642291,-500.0,0.00017766,2]
[405775142,1771296642301,-500.0,0.00017766,2]
[405775143,1771296642311,-500.0,0.00017766,2]
[405775144,1771296642320,-466.0,0.00017766,2]
[405775145,1771296642329,-500.0,0.00017766,2]
[405775146,1771296642339,-444.64,0.00017808,2]
[405775147,1771296642348,-500.0,0.00017808,2]
[405775148,1771296642358,-500.0,0.00017808,2]
[405775149,1771296642367,-595.71508911,0.00017808,2]
[405775150,1771296642376,-500.0,0.00017808,2]
[405775151,1771296642386,-500.0,0.00017808,2]
[405775152,1771296642396,-500.0,0.00017808,2]
[405775153,1771296642405,-500.0,0.00017808,2]
[405775154,1771296642416,-500.0,0.00017808,2]
[405775155,1771296642426,-500.0,0.00017808,2]
[405775156,1771296642436,-800.0,0.00017808,2]
[405775157,1771296642446,-160.57318335,0.00017819,2]
[405775158,1771296642456,-200.0,0.00017821,2]
[405775159,1771296642466,-200.0,0.00017821,2]
[405775160,1771296642475,-500.0,0.00017821,2]
[405775161,1771296642485,-500.0,0.00017821,2]
[405775162,1771296642495,-621.12228144,0.00017821,2]
[405775163,1771296642504,-466.0,0.00017821,2]
[405775164,1771296642514,-500.0,0.00017821,2]
[405775165,1771296642523,-1551.84,0.00017846,2]
[405775166,1771296642532,-1004.12697823,0.0001786,2]
[405775167,1771296642542,-500.0,0.00017876,2]
[405775168,1771296642551,-500.0,0.00017876,2]
[405775169,1771296642561,-466.0,0.00017876,2]
[405775170,1771296642570,-500.0,0.00017876,2]
[405775171,1771296642580,-500.0,0.00017881,2]
[405775172,1771296642589,-205.74726688,0.0001789,2]
[405775173,1771296642599,-1000.0,0.00017895,2]
[405775174,1771296642610,-2555.4951848,0.000179,5]
[405775175,1771296642619,-632.57651017,0.000179,2]
[405775176,1771296642629,-1361.79834295,0.000179,2]
[405775177,1771296642639,-5300.13656815,0.000179,2]
[405775178,1771296642649,-227.20890354,0.000179,2]
[405775179,1771296642659,-1488.83065607,0.000179,2]
[405775180,1771296642669,-500.0,0.00017918,2]
[405775181,1771296642678,-500.0,0.00017918,2]
[405775182,1771296642687,-500.0,0.00017918,2]
[405775183,1771296642697,-500.0,0.00017918,2]
[405775184,1771296642707,-500.0,0.00017918,2]
[405775185,1771296642716,-500.0,0.00017918,2]
[405775186,1771296642727,-477.0,0.00017918,2]
[405775187,1771296642736,-500.0,0.0001793,2]
[405775188,1771296642747,-500.0,0.0001793,2]
[405775189,1771296642756,-466.0,0.0001793,2]
[405775190,1771296642766,-500.0,0.0001793,2]
[405775191,1771296642776,-500.0,0.00017985,2]
[405775192,1771296642785,-500.0,0.00017985,2]
[405775193,1771296642795,-466.0,0.00017985,2]
[405775194,1771296642805,-500.0,0.00017985,2]
[405775195,1771296642815,-300.0,0.00017987,2]
[405775196,1771296642824,-18383.89,0.00017987,2]
[405775197,1771296642834,-763.92788936,0.0001799,2]
[405775198,1771296642843,-151.0,0.00017997,2]
[405775199,1771296642853,-151.0,0.00017997,2]
[405775200,1771296642862,-300.0,0.00017999,2]
[405775201,1771296642872,-666.0,0.00017999,2]
[405775202,1771296642881,-300.0,0.00017999,2]
[405775203,1771296642891,-666.0,0.00017999,2]
[405775204,1771296642901,-23598.10797836,0.00017999,2]
[405775205,1771296642910,-7083614.52364682,0.00018,2]
[405775206,1771296643574,-8811.63573528,0.00018,2]
[405775207,1771296643586,-8947.21879473,0.00018,2]
[405775208,1771296643597,-8943.78386462,0.00018,2]
[405775209,1771296643609,-9077.54866152,0.00018,2]
[405775210,1771296643620,-3250115.54016508,0.00018,2]
[405775287,1771296990120,354.67017066,9.8e-05,3]
[405775288,1771296990186,446.77174747,9.8e-05,3]
[405775289,1771296990264,477.47227307,9.8e-05,3]
[405775290,1771296990308,508.17279867,9.8e-05,3]
[405775293,1771297169865,208.11302572,9.6e-05,3]
[405775294,1771297169933,251.69779501,9.6e-05,3]
[405775295,1771297169972,234.2638873,9.6e-05,3]
[405775296,1771297170029,242.98084115,9.6e-05,3]
[405775301,1771297310783,190.0,0.0002029,120]
[405775302,1771297368750,10000.01,8.962e-05,2]
[405775303,1771297368773,10000.01,8.962e-05,2]
[405775304,1771297368796,9276.16,8.962e-05,2]
[405775305,1771297517557,500.0,9.52e-05,2]
[405775308,1771297556562,163.31,7.499e-05,2]
[405775309,1771297556770,60.54,8.249e-05,2]
[405775310,1771297556794,102.77,8.249e-05,2]
[405775311,1771297556972,163.31,8.999e-05,2]
[405775312,1771297574817,214.0121963,9.52e-05,2]
[405775313,1771297574899,500.0,9.52e-05,2]
[405775314,1771297576438,500.0,9.52e-05,2]
[405775315,1771297576488,500.0,9.52e-05,2]
[405775316,1771297577159,500.0,9.52e-05,2]
[405775317,1771297578488,150.0,9.52e-05,2]
[405775318,1771297589474,1279.256994,9.527e-05,2]
[405775326,1771297638861,150.0,9.52e-05,2]
[405775327,1771297638908,500.0,9.52e-05,2]
[405775328,1771297639590,150.0,9.52e-05,2]
[405775329,1771297640513,154.86539372,9.52e-05,2]
[405775330,1771297640579,500.0,9.52e-05,2]
[405775331,1771297640647,500.0,9.52e-05,2]
[405775332,1771297641339,500.0,9.52e-05,2]
[405775333,1771297641554,150.31509327,9.52e-05,2]
[405775334,1771297641595,500.0,9.52e-05,2]
[405775335,1771297641643,500.0,9.52e-05,2]
[405775336,1771297642493,500.0,9.52e-05,2]
[405775337,1771297642711,500.0,9.52e-05,2]
[405775338,1771297643469,500.0,9.52e-05,2]
[405775342,1771297686852,-500.87477363,9.575e-05,2]
[405775343,1771297686884,-502.16866536,9.575e-05,2]
[405775344,1771297686913,-500.0,9.575e-05,2]
[405775345,1771297686941,-500.0,9.575e-05,2]
[405775346,1771297686968,-500.0,9.575e-05,2]
[405775347,1771297686996,-500.0,9.575e-05,2]
[405775348,1771297687024,-151.2254874,9.575e-05,2]
[405775349,1771297687051,-150.0,9.575e-05,2]
[405775350,1771297687078,-500.0,9.575e-05,2]
[405775351,1771297687108,-500.0,9.575e-05,2]
[405775352,1771297687134,-500.0,9.575e-05,2]
[405775353,1771297689765,500.0,9.52e-05,2]
[405775354,1771297689895,-500.0,9.575e-05,2]
[405775355,1771297689925,-500.0,9.575e-05,2]
[405775356,1771297689955,-500.0,9.575e-05,2]
[405775357,1771297689986,-500.0,9.575e-05,2]
[405775358,1771297690015,-500.0,9.575e-05,2]
[405775359,1771297690101,500.0,9.575e-05,2]
[405775360,1771297690421,500.0,9.52e-05,2]
[405775361,1771297690592,500.0,9.575e-05,2]
[405775362,1771297690956,872.0,9.52e-05,2]
[405775363,1771297691112,872.0,9.575e-05,2]
[405775364,1771297691158,500.0,9.52e-05,2]
[405775365,1771297691278,500.0,9.575e-05,2]
[405775366,1771297696221,756.01,9.52e-05,2]
[405775367,1771297696245,3460.99,9.52e-05,2]
[405775368,1771297696372,4217.0,9.575e-05,2]
[405775369,1771297709217,266.0,9.594e-05,2]
[405775370,1771297710018,151.0,9.592e-05,2]
[405775371,1771297710375,151.0,9.592e-05,2]
[405775372,1771297741558,300.0,9.594e-05,2]
[405775373,1771297742820,150.0,9.594e-05,2]
[405775374,1771297749710,293.87,8.936e-05,2]
[405775375,1771297757200,500.0,9.42e-05,2]
[405775376,1771297758081,500.0,9.42e-05,2]
[405775377,1771297758157,10.15,9.475e-05,2]
[405775378,1771297758178,489.85,9.475e-05,2]
[405775379,1771297758241,500.0,9.53e-05,2]
[405775380,1771297758294,150.0,9.42e-05,2]
[405775381,1771297758371,500.0,9.584e-05,2]
[405775382,1771297758405,500.0,9.475e-05,2]
[405775383,1771297758438,150.07216309,9.475e-05,2]
[405775384,1771297758672,510.76125773,9.53e-05,2]
[405775385,1771297759558,500.0,9.42e-05,2]
[405775386,1771297759624,500.0,9.42e-05,2]
[405775387,1771297759734,500.0,9.475e-05,2]
[405775388,1771297759772,505.10095498,9.475e-05,2]
[405775389,1771297759909,500.0,9.53e-05,2]
[405775390,1771297759941,150.0,9.42e-05,2]
[405775391,1771297760062,500.0,9.584e-05,2]
[405775392,1771297760349,500.0,9.42e-05,2]
[405775393,1771297760501,500.0,9.475e-05,2]
[405775394,1771297760609,466.0,9.42e-05,2]
[405775395,1771297760757,466.0,9.475e-05,2]
[405775396,1771297760796,500.0,9.53e-05,2]
[405775397,1771297760912,466.0,9.53e-05,2]
[405775398,1771297760952,500.0,9.584e-05,2]
[405775399,1771297761078,466.0,9.584e-05,2]
[405775400,1771297761207,180.2256242,9.42e-05,2]
[405775401,1771297761232,319.7743758,9.42e-05,2]
[405775402,1771297761653,500.0,9.475e-05,2]
[405775403,1771297761724,500.0,9.53e-05,2]
[405775404,1771297761778,500.0,9.584e-05,2]
[405775405,1771297761832,150.0,9.42e-05,2]
[405775406,1771297761923,150.0,9.42e-05,2]
[405775407,1771297795997,1634.14,8.824e-05,2]
[405775408,1771297801508,1200.0,9.594e-05,2]
[405775422,1771297831781,-970.48795508,9.595e-05,2]
[405775423,1771297832391,-87643.40886706,9.595e-05,2]
[405775425,1771297837923,-4516.2373811,9.595e-05,2]
[405775426,1771297838079,-3406869.86579676,9.595e-05,2]
[405775427,1771297838091,-4129.358,9.595e-05,2]
[405775428,1771297838102,-89451.1427,9.595e-05,2]
[405775429,1771297838112,-630.25413496,9.595e-05,2]
[405775430,1771297838123,-258.52795508,9.609e-05,2]
[405775431,1771297838133,-500.0,9.63e-05,2]
[405775433,1771297838144,-150.0,9.63e-05,2]
[405775435,1771297838154,-500.0,9.63e-05,2]
[405775437,1771297838164,-500.0,9.63e-05,2]
[405775439,1771297838174,-500.0,9.63e-05,2]
[405775441,1771297838184,-500.0,9.63e-05,2]
[405775443,1771297838195,-500.0,9.63e-05,2]
[405775445,1771297838206,-616.5683879,9.63e-05,2]
[405775447,1771297838216,-500.0,9.63e-05,2]
[405775450,1771297838227,-500.0,9.63e-05,2]
[405775452,1771297838237,-500.0,9.63e-05,2]
[405775454,1771297838247,-500.0,9.63e-05,2]
[405775456,1771297838258,-872.0,9.63e-05,2]
[405775458,1771297838268,-500.0,9.63e-05,2]
[405775460,1771297838279,-4217.0,9.63e-05,2]
[405775462,1771297838289,-500.0,9.639e-05,2]
[405775464,1771297838299,-500.0,9.639e-05,2]
[405775466,1771297838310,-466.0,9.639e-05,2]
[405775467,1771297838321,-500.0,9.639e-05,2]
[405775469,1771297838331,-500.0,9.639e-05,2]
[405775472,1771297838342,-500.0,9.684e-05,2]
[405775474,1771297838354,-150.0,9.684e-05,2]
[405775476,1771297838369,-500.0,9.684e-05,2]
[405775478,1771297838388,-500.0,9.684e-05,2]
[405775480,1771297838399,-500.0,9.684e-05,2]
[405775482,1771297838410,-500.0,9.684e-05,2]
[405775484,1771297838420,-500.0,9.684e-05,2]
[405775486,1771297838432,-500.0,9.684e-05,2]
[405775488,1771297838443,-500.0,9.684e-05,2]
[405775490,1771297838454,-178.36591542,9.684e-05,2]
[405775492,1771297838465,-500.0,9.684e-05,2]
[405775494,1771297838475,-872.0,9.684e-05,2]
[405775496,1771297838486,-500.0,9.684e-05,2]
[405775497,1771297838496,-4217.0,9.684e-05,2]
[405775498,1771297838506,-1000.0,9.693e-05,2]
[405775499,1771297838516,-500.0,9.694e-05,2]
[405775500,1771297838527,-319.94512873,9.694e-05,2]
[405775501,1771297838538,-500.0,9.694e-05,2]
[405775502,1771297838548,-306.24993584,9.694e-05,2]
[405775503,1771297838559,-528.38821764,9.694e-05,2]
[405775504,1771297838570,-500.0,9.694e-05,2]
[405775505,1771297838581,-500.0,9.694e-05,2]
[405775506,1771297838592,-562.38554082,9.694e-05,2]
[405775507,1771297838602,-500.0,9.694e-05,2]
[405775508,1771297838614,-510.27609923,9.694e-05,2]
[405775509,1771297838625,-500.0,9.694e-05,2]
[405775510,1771297838638,-500.0,9.694e-05,2]
[405775511,1771297838649,-500.0,9.694e-05,2]
[405775512,1771297838660,-500.0,9.694e-05,2]
[405775513,1771297838670,-539.19044892,9.694e-05,2]
[405775514,1771297838681,-500.0,9.694e-05,2]
[405775515,1771297838691,-500.0,9.694e-05,2]
[405775516,1771297838701,-577.28785722,9.694e-05,2]
[405775517,1771297838711,-539.19044892,9.694e-05,2]
[405775518,1771297838722,-263.42538756,9.694e-05,2]
[405775519,1771297838732,-500.0,9.694e-05,2]
[405775520,1771297838743,-500.0,9.694e-05,2]
[405775521,1771297838754,-500.0,9.694e-05,2]
[405775522,1771297838766,-500.0,9.694e-05,2]
[405775523,1771297838777,-539.19044892,9.694e-05,2]
[405775524,1771297838790,-500.0,9.694e-05,2]
[405775525,1771297838801,-500.0,9.694e-05,2]
[405775526,1771297838812,-500.0,9.694e-05,2]
[405775527,1771297838823,-539.19044892,9.694e-05,2]
[405775528,1771297838833,-500.0,9.694e-05,2]
[405775529,1771297838844,-539.19044892,9.694e-05,2]
[405775530,1771297838855,-500.0,9.694e-05,2]
[405775531,1771297838866,-395.8150033,9.694e-05,2]
[405775532,1771297838877,-500.0,9.694e-05,2]
[405775533,1771297838888,-500.0,9.694e-05,2]
[405775534,1771297838898,-539.19044892,9.694e-05,2]
[405775535,1771297838908,-500.0,9.694e-05,2]
[405775536,1771297838918,-500.0,9.694e-05,2]
[405775537,1771297838927,-550.77300573,9.694e-05,2]
[405775538,1771297838937,-539.19044892,9.694e-05,2]
[405775539,1771297838947,-539.19044892,9.694e-05,2]
[405775540,1771297838956,-500.0,9.694e-05,2]
[405775541,1771297838967,-539.19044892,9.694e-05,2]
[405775542,1771297838977,-565.83656901,9.694e-05,2]
[405775543,1771297838988,-539.19044892,9.694e-05,2]
[405775544,1771297838997,-539.19044892,9.694e-05,2]
[405775545,1771297839009,-539.19044892,9.694e-05,2]
[405775546,1771297839020,-539.19044892,9.694e-05,2]
[405775547,1771297839030,-539.19044892,9.694e-05,2]
[405775548,1771297839040,-539.19044892,9.694e-05,2]
[405775549,1771297839050,-539.19044892,9.694e-05,2]
[405775550,1771297839060,-539.19044892,9.694e-05,2]
[405775551,1771297839070,-539.19044892,9.694e-05,2]
[405775552,1771297839080,-539.19044892,9.694e-05,2]
[405775553,1771297839091,-539.19044892,9.694e-05,2]
[405775554,1771297839102,-539.19044892,9.694e-05,2]
[405775555,1771297839112,-539.19044892,9.694e-05,2]
[405775556,1771297839122,-539.19044892,9.694e-05,2]
[405775557,1771297839132,-539.19044892,9.694e-05,2]
[405775558,1771297839143,-539.19044892,9.694e-05,2]
[405775559,1771297839153,-539.19044892,9.694e-05,2]
[405775560,1771297839163,-539.19044892,9.694e-05,2]
[405775561,1771297839174,-539.19044892,9.694e-05,2]
[405775562,1771297839185,-539.19044892,9.694e-05,2]
[405775563,1771297839195,-539.19044892,9.694e-05,2]
[405775564,1771297839205,-539.19044892,9.694e-05,2]
[405775565,1771297839215,-539.19044892,9.694e-05,2]
[405775566,1771297839227,-539.19044892,9.694e-05,2]
[405775567,1771297839238,-539.19044892,9.694e-05,2]
[405775568,1771297839248,-539.19044892,9.694e-05,2]
[405775569,1771297839258,-539.19044892,9.694e-05,2]
[405775570,1771297839268,-539.19044892,9.694e-05,2]
[405775571,1771297839278,-539.19044892,9.694e-05,2]
[405775572,1771297839288,-539.19044892,9.694e-05,2]
[405775573,1771297839298,-539.19044892,9.694e-05,2]
[405775574,1771297839308,-539.19044892,9.694e-05,2]
[405775575,1771297839318,-539.19044892,9.694e-05,2]
[405775576,1771297839329,-539.19044892,9.694e-05,2]
[405775577,1771297839338,-539.19044892,9.694e-05,2]
[405775578,1771297839348,-539.19044892,9.694e-05,2]
[405775579,1771297839361,-539.19044892,9.694e-05,2]
[405775580,1771297839371,-539.19044892,9.694e-05,2]
[405775581,1771297839381,-539.19044892,9.694e-05,2]
[405775582,1771297839392,-539.19044892,9.694e-05,2]
[405775583,1771297839403,-539.19044892,9.694e-05,2]
[405775584,1771297839413,-539.19044892,9.694e-05,2]
[405775585,1771297839424,-953.71368783,9.694e-05,2]
[405775586,1771297839434,-953.71368783,9.694e-05,2]
[405775587,1771297839444,-953.71368783,9.694e-05,2]
[405775588,1771297839454,-953.71368783,9.694e-05,2]
[405775589,1771297839464,-953.71368783,9.694e-05,2]
[405775590,1771297839474,-953.71368783,9.694e-05,2]
[405775591,1771297839484,-953.71368783,9.694e-05,2]
[405775592,1771297839494,-953.71368783,9.694e-05,2]
[405775593,1771297839504,-953.71368783,9.694e-05,2]
[405775594,1771297839515,-953.71368783,9.694e-05,2]
[405775595,1771297839525,-953.71368783,9.694e-05,2]
[405775596,1771297839535,-953.71368783,9.694e-05,2]
[405775597,1771297839545,-953.71368783,9.694e-05,2]
[405775598,1771297839556,-953.71368783,9.694e-05,2]
[405775599,1771297839565,-953.71368783,9.694e-05,2]
[405775600,1771297839576,-953.71368783,9.694e-05,2]
[405775601,1771297839585,-953.71368783,9.694e-05,2]
[405775602,1771297839596,-953.71368783,9.694e-05,2]
[405775603,1771297839605,-953.71368783,9.694e-05,2]
[405775604,1771297839615,-953.71368783,9.694e-05,2]
[405775605,1771297839625,-953.71368783,9.694e-05,2]
[405775606,1771297839635,-953.71368783,9.694e-05,2]
[405775607,1771297839645,-953.71368783,9.694e-05,2]
[405775608,1771297839654,-953.71368783,9.694e-05,2]
[405775609,1771297839664,-953.71368783,9.694e-05,2]
[405775610,1771297839674,-953.71368783,9.694e-05,2]
[405775611,1771297839683,-953.71368783,9.694e-05,2]
[405775612,1771297839697,-953.71368785,9.694e-05,2]
[405775613,1771297839707,-953.71368785,9.694e-05,2]
[405775614,1771297839717,-953.71368785,9.694e-05,2]
[405775615,1771297839727,-953.71368785,9.694e-05,2]
[405775616,1771297839736,-953.71368785,9.694e-05,2]
[405775617,1771297839746,-953.71368785,9.694e-05,2]
[405775618,1771297839755,-953.71368785,9.694e-05,2]
[405775620,1771297839765,-953.71368785,9.694e-05,2]
[405775621,1771297839775,-953.71368782,9.694e-05,2]
[405775622,1771297839785,-500.0,9.694e-05,2]
[405775623,1771297839794,-500.0,9.694e-05,2]
[405775624,1771297839803,-466.0,9.694e-05,2]
[405775625,1771297839813,-500.0,9.694e-05,2]
[405775626,1771297839823,-500.0,9.694e-05,2]
[405775627,1771297839832,-156.268,9.694e-05,2]
[405775628,1771297839841,-2500.0,9.695e-05,2]
[405775629,1771297839851,-329.95129651,9.739e-05,2]
[405775630,1771297839861,-250.53819001,9.739e-05,2]
[405775631,1771297839870,-500.0,9.739e-05,2]
[405775632,1771297839880,-500.0,9.739e-05,2]
[405775633,1771297839889,-500.0,9.739e-05,2]
[405775634,1771297839899,-500.0,9.739e-05,2]
[405775635,1771297839910,-500.0,9.739e-05,2]
[405775636,1771297839920,-500.0,9.739e-05,2]
[405775637,1771297839930,-500.0,9.739e-05,2]
[405775638,1771297839940,-500.0,9.739e-05,2]
[405775639,1771297839949,-872.0,9.739e-05,2]
[405775641,1771297839959,-500.0,9.739e-05,2]
[405775642,1771297839970,-4217.0,9.739e-05,2]
[405775643,1771297839980,-500.0,9.749e-05,2]
[405775644,1771297839989,-500.0,9.749e-05,2]
[405775645,1771297839999,-466.0,9.749e-05,2]
[405775646,1771297840011,-621.12228144,9.749e-05,2]
[405775647,1771297840021,-500.0,9.749e-05,2]
[405775648,1771297840030,-163.31,9.749e-05,2]
[405775649,1771297840040,-895.0,9.775e-05,2]
[405775650,1771297840049,-558.07,9.79e-05,2]
[405775651,1771297840059,-299.99,9.792e-05,2]
[405775652,1771297840068,-9999.99,9.793e-05,2]
[405775653,1771297840078,-150.99,9.794e-05,2]
[405775654,1771297840087,-150.99,9.794e-05,2]
[405775655,1771297840097,-999.99,9.794e-05,2]
[405775656,1771297840107,-153.2248447,9.794e-05,2]
[405775657,1771297840116,-500.0,9.794e-05,2]
[405775658,1771297840126,-500.0,9.794e-05,2]
[405775659,1771297840136,-500.0,9.794e-05,2]
[405775660,1771297840145,-500.0,9.794e-05,2]
[405775661,1771297840156,-500.0,9.794e-05,2]
[405775662,1771297840165,-500.33776257,9.794e-05,2]
[405775663,1771297840176,-500.0,9.794e-05,2]
[405775664,1771297840186,-872.0,9.794e-05,2]
[405775665,1771297840196,-500.0,9.794e-05,2]
[405775666,1771297840206,-4217.0,9.794e-05,2]
[405775667,1771297840215,-1919.0,9.794e-05,2]
[405775668,1771297840225,-500.0,9.804e-05,2]
[405775669,1771297840235,-500.0,9.804e-05,2]
[405775670,1771297840245,-466.0,9.804e-05,2]
[405775671,1771297840255,-500.0,9.804e-05,2]
[405775672,1771297840587,-331.0,9.842e-05,2]
[405775673,1771297840597,-500.0,9.849e-05,2]
[405775674,1771297840608,-500.0,9.849e-05,2]
[405775675,1771297840618,-500.0,9.849e-05,2]
[405775676,1771297840628,-500.0,9.849e-05,2]
[405775677,1771297840639,-500.0,9.849e-05,2]
[405775678,1771297840648,-500.0,9.849e-05,2]
[405775679,1771297840658,-872.0,9.849e-05,2]
[405775681,1771297840667,-475.49905426,9.849e-05,2]
[405775682,1771297840676,-4217.0,9.849e-05,2]
[405775683,1771297840685,-500.0,9.858e-05,2]
[405775684,1771297840695,-500.0,9.858e-05,2]
[405775685,1771297840704,-466.0,9.858e-05,2]
[405775686,1771297840713,-500.0,9.858e-05,2]
[405775687,1771297840723,-801.0,9.861e-05,2]
[405775688,1771297840732,-4587.476,9.895e-05,2]
[405775689,1771297840741,-181.74,9.9e-05,2]
[405775690,1771297840751,-500.0,9.904e-05,2]
[405775691,1771297840761,-500.0,9.904e-05,2]
[405775692,1771297840770,-500.0,9.904e-05,2]
[405775693,1771297840780,-500.0,9.904e-05,2]
[405775694,1771297840789,-500.0,9.904e-05,2]
[405775695,1771297840799,-500.0,9.904e-05,2]
[405775696,1771297840809,-872.0,9.904e-05,2]
[405775697,1771297840818,-4217.0,9.904e-05,2]
[405775698,1771297840827,-500.0,9.913e-05,2]
[405775699,1771297840838,-500.0,9.913e-05,2]
[405775700,1771297840847,-466.0,9.913e-05,2]
[405775701,1771297840856,-500.0,9.913e-05,2]
[405775702,1771297840866,-500.0,9.958e-05,2]
[405775703,1771297840875,-500.0,9.958e-05,2]
[405775704,1771297840885,-500.0,9.958e-05,2]
[405775705,1771297840894,-500.0,9.958e-05,2]
[405775706,1771297840903,-500.0,9.958e-05,2]
[405775707,1771297840913,-500.0,9.958e-05,2]
[405775708,1771297840923,-872.0,9.958e-05,2]
[405775709,1771297840932,-4217.0,9.958e-05,2]
[405775710,1771297840941,-500.0,9.968e-05,2]
[405775711,1771297840951,-500.0,9.968e-05,2]
[405775712,1771297840960,-500.0,9.968e-05,2]
[405775713,1771297840969,-466.0,9.968e-05,2]
[405775714,1771297840979,-500.0,9.968e-05,2]
[405775715,1771297840990,-10000.0,9.995e-05,2]
[405775716,1771297840999,-32850.4601,9.995e-05,2]
[405775717,1771297841009,-1000.0,9.995e-05,2]
[405775718,1771297841019,-174.44086209,0.0001,2]
[405775719,1771297841028,-174.44086209,0.0001,2]
[405775720,1771297841038,-151.0,0.0001,2]
[405775721,1771297841047,-151.0,0.0001,2]
[405775722,1771297841056,-151.0,0.0001,2]